fUST/lending_fUST_20250717
["ID","MTS","AMOUNT","RATE_DAILY","PERIOD"]
[372652097,1752733893725,-467.24266409,0.00018034,2]
[372652098,1752733893790,-1198.696284,0.00018034,2]
[372652099,1752733894329,-249.99042022,0.00018034,2]
[372652100,1752733894395,-1448.68670422,0.00018034,2]
[372652101,1752733894460,-1448.68670422,0.00018034,2]
[372652102,1752733894529,-1448.68670422,0.00018034,2]
[372652103,1752733894615,-1448.68670422,0.00018034,2]
[372652104,1752733894678,-1448.68670422,0.00018034,2]
[372652105,1752733894740,-1448.68670422,0.00018034,2]
[372652106,1752733894871,-1448.68670422,0.00018034,2]
[372652107,1752733894935,-1448.68670422,0.00018034,2]
[372652108,1752733894999,-500.0,0.00018034,2]
[372652109,1752733895057,-500.0,0.00018034,2]
[372652110,1752733895119,-500.0,0.00018034,2]
[372652112,1752733895182,-312.37067124,0.00018034,2]
[372652113,1752733895501,-1377.38770344,0.00018034,2]
[372652114,1752733895562,-1177.38,0.00018035,2]
[372652115,1752733895620,-460.0,0.00018036,2]
[372652116,1752733895686,-460.0,0.00018036,2]
[372652117,1752733895744,-460.0,0.00018036,2]
[372652118,1752733895806,-530.24978864,0.00018036,2]
[372652119,1752733895863,-510.58315203,0.00018036,2]
[372652120,1752733896214,-460.0,0.00018036,2]
[372652121,1752733898386,460.0,0.00018034,2]
[372652122,1752733900193,8620.0,0.00017131,2]
[372652123,1752733900242,1380.0,0.00017131,2]
[372652124,1752733902961,460.0,0.00018036,2]
[372652125,1752733906016,460.0,0.00018036,2]
[372652126,1752733909073,460.88475121,0.00018032,2]
[372652127,1752733911757,1000.0,0.00018034,2]
[372652128,1752733913233,460.0,0.00018032,2]
[372652130,1752733915785,460.0,0.00018034,2]
[372652131,1752733916519,460.0,0.00018034,2]
[372652132,1752733916597,460.0,0.00018032,2]
[372652133,1752733920387,460.0,0.00018034,2]
[372652134,1752733921065,460.0,0.00018034,2]
[372652135,1752733922066,2343.04,0.00018035,2]
[372652136,1752733922755,460.0,0.00018034,2]
[372652137,1752733923453,460.0,0.00018032,2]
[372652138,1752733926025,216.07524879,0.00018034,2]
[372652139,1752733926080,783.92475121,0.00018034,2]
[372652140,1752733926923,460.0,0.00018034,2]
[372652141,1752733927660,460.0,0.00018036,2]
[372652142,1752733927953,500.0,0.00018032,2]
[372652143,1752733928275,634.24,0.00018033,2]
[372652144,1752733928369,7161.83524879,0.00018035,2]
[372652145,1752733928430,10000.0,0.00018035,2]
[372652146,1752733928491,10000.0,0.00018035,2]
[372652147,1752733928553,10000.0,0.00018035,2]
[372652148,1752733928608,10000.0,0.00018035,2]
[372652149,1752733928662,10000.0,0.00018035,2]
[372652150,1752733928715,10000.0,0.00018035,2]
[372652151,1752733928770,10000.0,0.00018035,2]
[372652152,1752733928821,10000.0,0.00018035,2]
[372652153,1752733928873,10000.0,0.00018035,2]
[372652154,1752733928924,10000.0,0.00018035,2]
[372652155,1752733928975,10000.0,0.00018035,2]
[372652156,1752733929026,10000.0,0.00018035,2]
[372652157,1752733929078,10000.0,0.00018035,2]
[372652158,1752733929127,10000.0,0.00018035,2]
[372652159,1752733929182,10000.0,0.00018035,2]
[372652160,1752733929237,7395.34483629,0.00018035,2]
[372652161,1752733930237,460.0,0.00018036,2]
[372652162,1752733931001,460.0,0.00018034,2]
[372652164,1752733931956,460.48736313,0.00018034,2]
[372652165,1752733933420,460.0,0.00018036,2]
[372652167,1752733934606,460.0,0.00018032,2]
[372652168,1752733937895,304.16780058,0.00018036,2]
[372652169,1752733937950,155.83219942,0.00018036,2]
[372652170,1752733938823,460.0,0.00018032,2]
[372652171,1752733938881,2708.21,0.00018032,2]
[372652172,1752733942789,460.0,0.00018036,2]
[372652173,1752733945399,209.64499207,0.00018034,2]
[372652174,1752733945766,460.0,0.00018034,2]
[372652175,1752733946061,460.0,0.00018036,2]
[372652177,1752733951277,460.0,0.00018034,2]
[372652178,1752733954822,460.0,0.00018034,2]
[372652179,1752733955835,1495.56,0.00018032,2]
[372652180,1752733957633,460.0,0.00018036,2]
[372652181,1752733961119,460.0,0.00018032,2]
[372652183,1752733967383,460.0,0.00018032,2]
[372652184,1752733970442,349.34495841,0.00018034,2]
[372652185,1752733972496,460.0,0.00018032,2]
[372652186,1752733976011,460.0,0.00018036,2]
[372652187,1752733978825,21.4078501,0.00018035,2]
[372652188,1752733978875,823.3021499,0.00018035,2]
[372652190,1752733983759,460.0,0.00018034,2]
[372652191,1752733985156,661.95,0.00018032,2]
[372652192,1752733985559,460.0,0.00018034,2]
[372652193,1752733988861,460.0,0.00018034,2]
[372652194,1752733991025,460.0,0.00018032,2]
[372652195,1752733991308,460.0,0.00018034,2]
[372652197,1752733993815,460.0,0.00018036,2]
[372652198,1752733994736,460.0,0.00018034,2]
[372652200,1752733996757,460.0,0.00018036,2]
[372652201,1752733999783,460.0,0.00018034,2]
[372652202,1752734000796,460.0,0.00018036,2]
[372652203,1752734003831,460.0,0.00018036,2]
[372652204,1752734003892,460.0,0.00018034,2]
[372652205,1752734003945,2994.7478501,0.00017183,2]
[372652206,1752734003994,10000.0,0.00017183,2]
[372652207,1752734004042,1958.790205,0.00017183,2]
[372652208,1752734004724,460.0,0.00018032,2]
[372652209,1752734007753,460.0,0.00018036,2]
[372652211,1752734008985,460.0,0.00018034,2]
[372652212,1752734019741,460.0,0.00018032,2]
[372652213,1752734022654,460.0,0.00018036,2]
[372652214,1752734024041,460.0,0.00018032,2]
[372652215,1752734024682,2169.38,0.00018032,2]
[372652217,1752734028640,500.0,0.00018032,2]
[372652218,1752734028904,500.0,0.00018032,2]
[372652219,1752734028960,460.0,0.00018034,2]
[372652220,1752734029150,500.0,0.00018032,2]
[372652221,1752734029407,500.0,0.00018032,2]
[372652222,1752734029674,500.0,0.00018032,2]
[372652223,1752734029935,151.829795,0.00018032,2]
[372652224,1752734029991,348.170205,0.00018032,2]
[372652225,1752734030167,500.0,0.00018032,2]
[372652226,1752734030413,500.0,0.00018032,2]
[372652227,1752734030646,500.0,0.00018032,2]
[372652228,1752734030956,500.0,0.00018032,2]
[372652229,1752734031225,500.0,0.00018032,2]
[372652230,1752734031482,500.0,0.00018032,2]
[372652231,1752734031752,500.0,0.00018032,2]
[372652232,1752734031987,500.0,0.00018032,2]
[372652233,1752734032401,500.0,0.00018032,2]
[372652234,1752734041209,778.08,0.00018032,2]
[372652235,1752734045246,460.0,0.00018036,2]
[372652236,1752734048989,460.0,0.00018032,2]
[372652237,1752734052864,460.0,0.00018032,2]
[372652238,1752734055161,609.11,0.00018034,2]
[372652239,1752734055554,460.0,0.00018032,2]
[372652240,1752734056502,647.621214,0.00013699,2]
[372652242,1752734059084,460.74179526,0.00018032,2]
[372652244,1752734062042,460.0,0.00018034,2]
[372652246,1752734075430,356.27678574,0.00018032,2]
[372652247,1752734075483,1026.74321426,0.00018032,2]
[372652248,1752734078932,460.0,0.00018032,2]
[372652249,1752734079658,460.0,0.00018032,2]
[372652250,1752734081469,1148.68,0.00018032,2]
[372652251,1752734084672,460.0,0.00018032,2]
[372652252,1752734088876,6444.57678574,0.00018035,2]
[372652253,1752734088931,10000.0,0.00018035,2]
[372652254,1752734088989,10000.0,0.00018035,2]
[372652255,1752734089045,10000.0,0.00018035,2]
[372652256,1752734089095,10000.0,0.00018035,2]
[372652257,1752734089144,10000.0,0.00018035,2]
[372652258,1752734089194,10000.0,0.00018035,2]
[372652259,1752734089244,10000.0,0.00018035,2]
[372652260,1752734089296,10000.0,0.00018035,2]
[372652261,1752734089346,10000.0,0.00018035,2]
[372652262,1752734089405,10000.0,0.00018035,2]
[372652263,1752734089461,10000.0,0.00018035,2]
[372652264,1752734089516,10000.0,0.00018035,2]
[372652265,1752734089565,10000.0,0.00018035,2]
[372652266,1752734089616,10000.0,0.00018035,2]
[372652267,1752734089666,10000.0,0.00018035,2]
[372652268,1752734089714,10000.0,0.00018035,2]
[372652269,1752734089763,10000.0,0.00018035,2]
[372652270,1752734089815,10000.0,0.00018035,2]
[372652271,1752734089862,10000.0,0.00018035,2]
[372652272,1752734089913,10000.0,0.00018035,2]
[372652273,1752734089961,10000.0,0.00018035,2]
[372652274,1752734090014,10000.0,0.00018035,2]
[372652275,1752734090061,10000.0,0.00018035,2]
[372652276,1752734090110,10000.0,0.00018035,2]
[372652277,1752734090159,10000.0,0.00018035,2]
[372652278,1752734090213,567.54598997,0.00018035,2]
[372652280,1752734091198,178.54984239,0.00018036,2]
[372652281,1752734093327,207.5699922,0.00017133,2]
[372652282,1752734095960,460.0,0.00018032,2]
[372652283,1752734105510,180.4351097,0.00017134,2]
[372652284,1752734105880,461.82414233,0.00018032,2]
[372652286,1752734112786,523.74,0.00018032,2]
[372652287,1752734113750,460.0,0.00018036,2]
[372652288,1752734117946,460.0,0.00018032,2]
[372652291,1752734132428,460.0,0.00018034,2]
[372652292,1752734135080,460.0,0.00018032,2]
[372652293,1752734135422,460.0,0.00018034,2]
[372652295,1752734139668,150.0,0.00016065,2]
[372652296,1752734140078,150.0,0.0001683,2]
[372652297,1752734140522,150.0,0.00017595,2]
[372652298,1752734145510,460.0,0.00018036,2]
[372652299,1752734148210,460.0,0.00018032,2]
[372652300,1752734151339,1397.84289498,0.0001803,2]
[372652302,1752734154864,460.0,0.00018034,2]
[372652303,1752734165317,460.0,0.00018032,2]
[372652304,1752734171393,460.0,0.00018032,2]
[372652305,1752734180294,972.49202843,0.00017132,2]
[372652306,1752734180361,614.86310547,0.00017132,2]
[372652307,1752734181685,1248.310703,0.00017586,2]
[372652308,1752734182045,860.74088606,0.00017586,2]
[372652309,1752734182352,430.37044303,0.00017587,2]
[372652310,1752734183226,639.39,0.00018032,2]
[372652311,1752734186167,460.0,0.00018032,2]
[372652312,1752734186582,460.0,0.00018032,2]
[372652313,1752734194230,460.0,0.00018032,2]
[372652314,1752734199205,460.0,0.00018032,2]
[372652315,1752734200744,500.0,0.00018032,2]
[372652316,1752734201479,500.0,0.00018032,2]
[372652317,1752734201727,502.1558036,0.00018032,2]
[372652318,1752734203163,460.0,0.00018034,2]
[372652319,1752734203618,460.0,0.00018032,2]
[372652320,1752734204098,470.28413226,0.00018036,2]
[372652321,1752734206219,460.0,0.00018034,2]
[372652322,1752734214295,460.0,0.00018032,2]
[372652323,1752734214356,500.0,0.00018032,2]
[372652324,1752734214487,53.88492658,0.00015958,2]
[372652325,1752734214540,96.11507342,0.00015958,2]
[372652326,1752734214615,500.0,0.00018032,2]
[372652327,1752734214856,500.0,0.00018032,2]
[372652328,1752734215126,500.0,0.00018032,2]
[372652329,1752734215355,438.67972223,0.00018032,2]
[372652330,1752734215413,61.32027777,0.00018032,2]
[372652331,1752734215477,150.0,0.00016718,2]
[372652332,1752734215668,500.0,0.00018032,2]
[372652333,1752734215814,150.0,0.00017478,2]
[372652334,1752734215952,224.94,0.00018032,2]
[372652335,1752734218618,460.0,0.00018032,2]
[372652336,1752734233690,460.0,0.00018032,2]
[372652337,1752734235653,460.0,0.00018034,2]
[372652338,1752734235947,460.0,0.00018032,2]
[372652339,1752734237884,460.0,0.00018032,2]
[372652340,1752734238719,460.0,0.00018034,2]
[372652341,1752734242368,460.0,0.00018034,2]
[372652342,1752734247083,460.0,0.00018032,2]
[372652343,1752734248272,614.52,0.00018032,2]
[372652344,1752734263633,460.0,0.00018032,2]
[372652345,1752734265781,460.0,0.00018032,2]
[372652346,1752734271279,460.0,0.00018032,2]
[372652347,1752734271357,460.0,0.00018032,2]
[372652348,1752734272596,801.81,0.00018032,2]
[372652349,1752734289195,150.0,0.00015923,2]
[372652350,1752734289613,150.0,0.00016681,2]
[372652351,1752734290066,81.29464881,0.00017439,2]
[372652352,1752734290131,68.70535119,0.00017439,2]
[372652353,1752734294522,464.48,0.00018032,2]
[372652357,1752734306923,460.0,0.00018032,2]
[372652358,1752734307644,494.6881851,0.00018032,2]
[372652360,1752734318284,324.03494865,0.00018034,2]
[372652361,1752734331157,445.7190445,0.00018036,2]
[372652364,1752734340407,2239.83,0.00018032,2]
[372652365,1752734342642,460.0,0.00018032,2]
[372652367,1752734362120,460.0,0.00018034,2]
[372652368,1752734363189,150.0,0.00015885,2]
[372652369,1752734366627,4432.54247056,0.00017131,2]
[372652370,1752734366678,10000.0,0.00017131,2]
[372652371,1752734366729,10000.0,0.00017131,2]
[372652372,1752734366777,10000.0,0.00017131,2]
[372652373,1752734366826,10000.0,0.00017131,2]
[372652374,1752734366875,5604.81260224,0.00017131,2]
[372652376,1752734370987,460.0,0.00018034,2]
[372652377,1752734373670,460.0,0.00018032,2]
[372652378,1752734373730,460.0,0.00018036,2]
[372652379,1752734374190,805.01,0.00018032,2]
[372652380,1752734377065,653.86,0.00018032,2]
[372652384,1752734381121,460.0,0.00018034,2]
[372652388,1752734398293,460.0,0.00018032,2]
[372652390,1752734410803,460.0,0.00018034,2]
[372652393,1752734425631,176.31739776,0.00018032,2]
[372652394,1752734425699,308.62260224,0.00018032,2]
[372652396,1752734434642,151.48418085,0.00018028,2]
[372652411,1752734439468,600.0,0.00018032,2]
[372652412,1752734441462,460.0,0.00018032,2]
[372652414,1752734446662,460.0,0.00018032,2]
[372652415,1752734449178,460.0,0.00018034,2]
[372652416,1752734457457,460.0,0.00018032,2]
[372652417,1752734460039,460.0,0.00018032,2]
[372652420,1752734467409,1085.92,0.00018032,2]
[372652421,1752734477920,460.0,0.00018032,2]
[372652422,1752734484372,446.039622,0.00017583,2]
[372652423,1752734484703,246.10761372,0.00017584,2]
[372652424,1752734485286,460.0,0.00018032,2]
[372652425,1752734485810,3941.82598119,0.0001713,2]
[372652426,1752734485868,10000.0,0.0001713,2]
[372652427,1752734485927,10000.0,0.0001713,2]
[372652428,1752734485991,10000.0,0.0001713,2]
[372652429,1752734486054,1540.08440231,0.0001713,2]
[372652430,1752734509822,150.0,0.00015879,2]
[372652431,1752734517440,472.29937864,0.00018032,2]
[372652432,1752734519595,460.0,0.00018032,2]
[372652433,1752734522537,2146.51,0.00018032,2]
[372652434,1752734530774,460.0,0.00018032,2]
[372652435,1752734533717,460.0,0.00018032,2]
[372652438,1752734548279,460.0,0.00018032,2]
[372652439,1752734551002,771.47,0.00018032,2]
[372652440,1752734559501,1771.85,0.00018032,2]
[372652441,1752734564944,715.35,0.00018032,2]
[372652443,1752734582558,460.0,0.00018032,2]
[372652444,1752734583921,132.43621905,0.00017266,2]
[372652445,1752734584014,37.78565895,0.00017266,2]
[372652446,1752734584089,170.221878,0.00017266,41]
[372652447,1752734584296,170.221878,0.00017266,80]
[372652448,1752734584701,170.221878,0.00017266,119]
[372652449,1752734597937,460.0,0.00018032,2]
[372652453,1752734617453,1113.06,0.00018032,2]
[372652454,1752734625867,1521.02,0.00018032,2]
[372652456,1752734635305,1880.9413395,0.00017127,2]
[372652459,1752734665871,460.0,0.00018032,2]
[372652460,1752734665947,460.0,0.00018034,2]
[372652461,1752734666583,150.0,0.00016059,2]
[372652462,1752734667467,150.0,0.00016824,2]
[372652463,1752734667796,-150.0,0.00018118,3]
[372652464,1752734668364,150.0,0.00017589,2]
[372652465,1752734669434,-236.67019051,0.00018118,3]
[372652467,1752734671033,-139.80980949,0.00018118,3]
[372652468,1752734681450,460.0,0.00018032,2]
[372652469,1752734683084,159.37655395,0.00018034,2]
[372652470,1752734683134,300.62344605,0.00018034,2]
[372652472,1752734693370,2856.5695555,0.00018032,2]
[372652473,1752734693416,87.8404445,0.00018032,2]
[372652474,1752734696439,1805.48,0.00018032,2]
[372652475,1752734699627,460.0,0.00018034,2]
[372652476,1752734703804,151.48418084,0.00018025,2]
[372652478,1752734719654,482.04,0.00018032,2]
[372652479,1752734720230,-163.63499744,0.00018119,2]
[372652480,1752734723490,-186.66420486,0.00018119,2]
[372652481,1752734725230,7013.15537466,0.00017125,2]
[372652482,1752734725283,10000.0,0.00017125,2]
[372652483,1752734725337,7886.84462534,0.00017125,2]
[372652485,1752734728953,-276.78345802,0.00018119,2]
[372652486,1752734731193,-171.10137273,0.00018119,2]
[372652487,1752734734156,-165.0,0.00018119,2]
[372652488,1752734735686,320.9233043,0.00017807,2]
[372652489,1752734739058,-236.81596695,0.00018119,2]
[372652491,1752734743084,-155.70149908,0.0001812,3]
[372652492,1752734753185,970.35,0.00018032,2]
[372652494,1752734770529,821.88207036,0.00018032,2]
[372652495,1752734770582,654.92792964,0.00018032,2]
[372652496,1752734771246,1568.23,0.00018032,2]
[372652497,1752734774651,166.0,0.00017125,2]
[372652499,1752734782009,460.0,0.00018034,2]
[372652500,1752734782599,-181.09835283,0.00018119,2]
[372652501,1752734784337,-47.46621961,0.00018119,2]
[372652502,1752734786261,192.26853043,0.0001758,2]
[372652504,1752734788705,800.0,0.00017336,2]
[372652507,1752734802104,460.0,0.00018034,2]
[372652508,1752734813391,460.0,0.00018034,2]
[372652509,1752734819008,693.79,0.00018032,2]
[372652511,1752734825541,156.0,0.000181,2]
[372652512,1752734827837,156.0,0.000181,2]
[372652514,1752734836374,3355.0,0.000181,2]
[372652515,1752734838200,877.78353993,0.00018032,2]
[372652516,1752734838256,2118.69646007,0.00018032,2]
[372652517,1752734840236,157.61636382,0.000181,2]
[372652609,1752734848177,462.16398892,0.00018034,2]
[372652610,1752734852902,460.0,0.00018034,2]
[372652611,1752734856250,200.0,0.000181,2]
[372652612,1752734856946,460.0,0.00018034,2]
[372652614,1752734866553,460.0,0.00018034,2]
[372652615,1752734869219,929.92,0.00018032,2]
[372652616,1752734878842,460.0,0.00018034,2]
[372652617,1752734887955,460.0,0.00018034,2]
[372652618,1752734889712,546.81645963,0.00018034,2]
[372652620,1752734908178,800.0,0.00018035,2]
[372652621,1752734909244,325.20830854,0.00018034,2]
[372652622,1752734909303,134.79169146,0.00018034,2]
[372652624,1752734918567,2349.9950361,0.00017124,2]
[372652625,1752734918625,7650.0049639,0.00017124,2]
[372652628,1752734938510,460.0,0.00018034,2]
[372652630,1752734955711,150.0,0.00015818,2]
[372652632,1752734966824,460.0,0.00018034,2]
[372652633,1752734970707,460.0,0.00018034,2]
[372652638,1752734997571,460.0,0.00018034,2]
[372652640,1752735011675,359.9950361,0.00018034,2]
[372652641,1752735011730,87.0439928,0.00018034,2]
[372652642,1752735024359,460.0,0.00018034,2]
[372652643,1752735026789,460.0,0.00018034,2]
[372652644,1752735027446,-340.55063513,0.00018119,2]
[372652645,1752735028913,506.28717857,0.00018034,2]
[372652646,1752735029903,-349.63675084,0.00018119,2]
[372652648,1752735031102,163.19441962,0.00018022,2]
[372652704,1752735032203,-509.81261403,0.00018119,2]
[372652705,1752735032212,-366.81850092,0.0001812,3]
[372652708,1752735032221,-177.50682705,0.0001812,3]
[372652710,1752735032235,-83.75317295,0.0001812,3]
[372652711,1752735032244,-223.68965617,0.0001812,3]
[372652718,1752735032319,-560.13034383,0.0001812,3]
[372652719,1752735032331,-789.72,0.0001812,3]
[372652721,1752735032340,-300.0,0.00018121,2]
[372652722,1752735032349,-300.0,0.00018121,2]
[372652724,1752735032359,-300.0,0.00018121,2]
[372652725,1752735032369,-230.0,0.00018121,2]
[372652726,1752735032378,-263.24,0.00018121,3]
[372652727,1752735032388,-460.0,0.00018122,2]
[372652728,1752735032397,-460.0,0.00018122,2]
[372652729,1752735032407,-460.0,0.00018122,2]
[372652730,1752735032417,-460.0,0.00018122,2]
[372652731,1752735032426,-460.0,0.00018122,2]
[372652732,1752735032437,-313.41361692,0.00018122,2]
[372652733,1752735032446,-500.0,0.00018122,2]
[372652734,1752735032456,-500.0,0.00018122,2]
[372652735,1752735032466,-500.0,0.00018122,2]
[372652736,1752735032479,-500.0,0.00018122,2]
[372652737,1752735032491,-500.0,0.00018122,2]
[372652738,1752735032501,-500.0,0.00018122,2]
[372652739,1752735032511,-500.0,0.00018122,2]
[372652740,1752735032520,-500.0,0.00018122,2]
[372652741,1752735032530,-309.64095314,0.00018122,2]
[372652742,1752735032543,-190.35904686,0.00018122,2]
[372652743,1752735032553,-500.0,0.00018122,2]
[372652744,1752735032562,-500.0,0.00018122,2]
[372652745,1752735032572,-500.0,0.00018122,2]
[372652746,1752735032583,-500.0,0.00018122,2]
[372652747,1752735032593,-500.0,0.00018122,2]
[372652748,1752735032603,-500.0,0.00018122,2]
[372652749,1752735032613,-500.0,0.00018122,2]
[372652750,1752735032623,-228.87518091,0.00018122,2]
[372652751,1752735032633,-474.37443489,0.00018122,2]
[372652752,1752735032643,-500.0,0.00018122,2]
[372652753,1752735032654,-500.0,0.00018122,2]
[372652754,1752735032667,-500.0,0.00018122,2]
[372652755,1752735032678,-500.0,0.00018122,2]
[372652756,1752735032688,-500.0,0.00018122,2]
[372652757,1752735032697,-500.0,0.00018122,2]
[372652758,1752735032706,-520.44433847,0.00018122,2]
[372652759,1752735032716,-500.0,0.00018122,2]
[372652760,1752735032726,-500.0,0.00018122,2]
[372652761,1752735032736,-500.0,0.00018122,2]
[372652762,1752735032747,-500.0,0.00018122,2]
[372652763,1752735032757,-304.32949027,0.00018122,2]
[372652764,1752735032767,-500.0,0.00018122,2]
[372652765,1752735032777,-500.0,0.00018122,2]
[372652766,1752735032786,-500.0,0.00018122,2]
[372652767,1752735032796,-500.0,0.00018122,2]
[372652768,1752735032806,-500.0,0.00018122,2]
[372652769,1752735032816,-500.0,0.00018122,2]
[372652770,1752735032826,-500.0,0.00018122,2]
[372652771,1752735032835,-500.0,0.00018122,2]
[372652772,1752735032845,-500.0,0.00018122,2]
[372652773,1752735032855,-500.0,0.00018122,2]
[372652774,1752735032864,-500.0,0.00018122,2]
[372652775,1752735032874,-500.0,0.00018122,2]
[372652776,1752735032883,-500.0,0.00018122,2]
[372652777,1752735032894,-500.0,0.00018122,2]
[372652778,1752735032903,-500.0,0.00018122,2]
[372652779,1752735032913,-500.0,0.00018122,2]
[372652780,1752735032923,-442.96662149,0.00018122,2]
[372652781,1752735032932,-500.0,0.00018122,2]
[372652782,1752735032942,-500.0,0.00018122,2]
[372652783,1752735032953,-500.0,0.00018122,2]
[372652784,1752735032962,-500.0,0.00018122,2]
[372652785,1752735032972,-500.0,0.00018122,2]
[372652786,1752735032982,-500.0,0.00018122,2]
[372652787,1752735033002,-118.14637924,0.00018122,2]
[372652788,1752735033016,-381.85362076,0.00018122,2]
[372652789,1752735033026,-500.0,0.00018122,2]
[372652790,1752735033037,-307.36335912,0.00018122,2]
[372652791,1752735033047,-500.0,0.00018122,2]
[372652792,1752735033057,-224.49381538,0.00018122,2]
[372652793,1752735033067,-500.0,0.00018122,2]
[372652794,1752735033078,-17152.21648754,0.00018122,2]
[372652795,1752735033091,-32847.78351246,0.00018122,2]
[372652796,1752735033101,-1200.0,0.00018123,2]
[372652797,1752735033111,-460.0,0.00018123,2]
[372652798,1752735033122,-460.0,0.00018123,2]
[372652799,1752735033131,-460.0,0.00018123,2]
[372652800,1752735033142,-460.0,0.00018123,2]
[372652801,1752735033152,-460.0,0.00018123,2]
[372652802,1752735033162,-460.0,0.00018123,2]
[372652803,1752735033178,-1843.02,0.00018123,2]
[372652804,1752735033188,-461.17151488,0.00018124,2]
[372652805,1752735033197,-460.0,0.00018124,2]
[372652806,1752735033207,-460.0,0.00018124,2]
[372652807,1752735033217,-460.0,0.00018124,2]
[372652808,1752735033227,-460.0,0.00018124,2]
[372652809,1752735033236,-460.0,0.00018124,2]
[372652810,1752735033246,-460.0,0.00018124,2]
[372652811,1752735033256,-460.0,0.00018124,2]
[372652812,1752735033265,-460.0,0.00018124,2]
[372652813,1752735033274,-460.0,0.00018124,2]
[372652814,1752735033283,-460.0,0.00018124,2]
[372652815,1752735033291,-460.0,0.00018124,2]
[372652816,1752735033301,-460.0,0.00018124,2]
[372652817,1752735033310,-460.0,0.00018124,2]
[372652818,1752735033321,-460.0,0.00018124,2]
[372652819,1752735033331,-460.0,0.00018124,2]
[372652820,1752735033339,-460.0,0.00018126,2]
[372652821,1752735033349,-460.0,0.00018126,2]
[372652822,1752735033358,-460.0,0.00018126,2]
[372652823,1752735033368,-460.0,0.00018126,2]
[372652824,1752735033378,-460.0,0.00018126,2]
[372652825,1752735033388,-460.0,0.00018126,2]
[372652826,1752735033399,-460.0,0.00018126,2]
[372652827,1752735033414,-460.0,0.00018126,2]
[372652828,1752735033431,-426.47673806,0.00018126,2]
[372652829,1752735033699,-460.0,0.00018126,2]
[372652830,1752735033709,-460.0,0.00018126,2]
[372652831,1752735033719,-460.0,0.00018126,2]
[372652832,1752735033729,-460.0,0.00018126,2]
[372652833,1752735033739,-460.0,0.00018126,2]
[372652834,1752735033750,-460.0,0.00018126,2]
[372652835,1752735033761,-463.85214761,0.00018126,2]
[372652836,1752735033772,-460.0,0.00018126,2]
[372652837,1752735033782,-3457.88,0.00018126,2]
[372652838,1752735033792,-789.83,0.00018126,2]
[372652839,1752735033802,-4699.05,0.00018126,2]
[372652840,1752735033812,-460.0,0.00018126,2]
[372652841,1752735033822,-460.45,0.00018126,2]
[372652842,1752735033834,-460.0,0.00018126,2]